fUSD/lending_fUSD_20251222
["ID","MTS","AMOUNT","RATE_DAILY","PERIOD"]
[399457229,1766369970344,500.0,0.00035342,30]
[399457230,1766369970496,500.0,0.00035342,30]
[399457231,1766369970658,500.0,0.00035342,30]
[399457232,1766369970821,500.0,0.00035342,30]
[399457233,1766369971074,500.0,0.00035342,30]
[399457234,1766369971240,500.0,0.00035342,30]
[399457235,1766369971436,500.0,0.00035342,30]
[399457236,1766369971633,402.33646176,0.00035342,30]
[399457237,1766369976187,2453.81427417,9.513e-05,2]
[399457238,1766369976216,46.18572583,9.513e-05,2]
[399457239,1766370018721,5789.4339,9.513e-05,2]
[399457240,1766370024959,235.9691,9.513e-05,2]
[399457242,1766370086473,152.04,0.000302,30]
[399457243,1766370092788,348.116,0.00034709,39]
[399457244,1766370098360,3928.42127417,9.513e-05,2]
[399457245,1766370098384,10000.01,9.513e-05,2]
[399457246,1766370098405,3275.26382583,9.513e-05,2]
[399457247,1766370103470,3614.5,0.00035616,30]
[399457248,1766370104887,2500.0,9.513e-05,2]
[399457249,1766370160473,161.59654,0.00035616,30]
[399457250,1766370194843,2083.031153,0.00033218,120]
[399457251,1766370196578,999.0,0.00035616,120]
[399457252,1766370254166,2500.0,9.513e-05,2]
[399457253,1766370331198,169.7655336,0.0002,120]
[399457254,1766370341146,3263.14751079,0.0003,120]
[399457255,1766370373914,200.0,9.269e-05,2]
[399457256,1766370404037,1524.74617417,9.513e-05,2]
[399457257,1766370404060,975.25382583,9.513e-05,2]
[399457258,1766370416386,607.53,0.00035616,120]
[399457259,1766370425677,350.9914312,0.0002301,120]
[399457262,1766370505975,153.149163,0.00032877,31]
[399457264,1766370512538,552.0636507,0.00028,60]
[399457265,1766370513525,9024.75617417,9.511e-05,2]
[399457266,1766370513551,10000.01,9.511e-05,2]
[399457267,1766370513577,10000.01,9.511e-05,2]
[399457268,1766370513603,10000.01,9.511e-05,2]
[399457269,1766370513627,10000.01,9.511e-05,2]
[399457270,1766370513653,10000.01,9.511e-05,2]
[399457271,1766370513678,10000.01,9.511e-05,2]
[399457272,1766370513702,10000.01,9.511e-05,2]
[399457273,1766370513726,10000.01,9.511e-05,2]
[399457274,1766370513749,10000.01,9.511e-05,2]
[399457276,1766370546307,-300.0,9.51e-05,2]
[399457278,1766370601252,1200.0,9.51e-05,2]
[399457279,1766370601511,300.0,9.51e-05,2]
[399457280,1766370602054,150.0,9.51e-05,2]
[399457281,1766370602213,300.0,9.51e-05,2]
[399457282,1766370603841,228.0,9.511e-05,2]
[399457283,1766370617696,151.0,0.00035,31]
[399457284,1766370624822,3549.026272,9.463e-05,2]
[399457285,1766370629775,151.0,0.00035,31]
[399457298,1766370632076,-600.0,9.511e-05,2]
[399457303,1766370632238,-166727.81324218,9.511e-05,2]
[399457304,1766370632249,-42373.69240696,9.511e-05,2]
[399457305,1766370632260,-1000.0,9.511e-05,2]
[399457330,1766370638146,-468.25497518,9.511e-05,2]
[399457333,1766370638308,-689805.39320151,9.511e-05,2]
[399457334,1766370638318,-2500.0,9.513e-05,2]
[399457335,1766370638328,-1847.15,9.541e-05,2]
[399457336,1766370638338,-250.0,9.541e-05,2]
[399457337,1766370638348,-408.01375928,9.541e-05,2]
[399457338,1766370638358,-2541.41384484,9.541e-05,2]
[399457339,1766370638367,-250.0,9.556e-05,2]
[399457340,1766370638377,-408.01375927,9.577e-05,2]
[399457341,1766370638387,-317.0,9.61e-05,2]
[399457342,1766370638397,-489.88154862,9.611e-05,2]
[399457343,1766370638406,-500.0,9.611e-05,2]
[399457344,1766370638416,-500.0,9.611e-05,2]
[399457345,1766370638426,-500.0,9.611e-05,2]
[399457346,1766370638435,-500.0,9.611e-05,2]
[399457347,1766370638445,-500.0,9.611e-05,2]
[399457348,1766370638454,-500.0,9.611e-05,2]
[399457349,1766370638464,-500.0,9.611e-05,2]
[399457350,1766370638477,-500.0,9.611e-05,2]
[399457351,1766370638486,-550.0,9.611e-05,2]
[399457352,1766370638495,-500.0,9.611e-05,2]
[399457353,1766370638505,-500.0,9.611e-05,2]
[399457354,1766370638516,-500.0,9.611e-05,2]
[399457355,1766370638527,-500.0,9.611e-05,2]
[399457356,1766370638536,-500.0,9.611e-05,2]
[399457357,1766370638547,-500.0,9.611e-05,2]
[399457358,1766370638557,-500.0,9.611e-05,2]
[399457359,1766370638567,-500.0,9.611e-05,2]
[399457360,1766370638577,-500.0,9.611e-05,2]
[399457361,1766370638586,-500.0,9.611e-05,2]
[399457362,1766370638596,-500.0,9.611e-05,2]
[399457363,1766370638606,-500.0,9.611e-05,2]
[399457364,1766370638615,-500.0,9.611e-05,2]
[399457365,1766370638625,-500.0,9.611e-05,2]
[399457366,1766370638634,-500.0,9.611e-05,2]
[399457367,1766370638644,-500.0,9.611e-05,2]
[399457368,1766370638654,-500.0,9.611e-05,2]
[399457369,1766370638664,-500.0,9.611e-05,2]
[399457370,1766370638674,-500.0,9.611e-05,2]
[399457371,1766370638685,-500.0,9.611e-05,2]
[399457372,1766370638700,-500.0,9.611e-05,2]
[399457373,1766370638710,-500.0,9.611e-05,2]
[399457374,1766370638719,-500.0,9.611e-05,2]
[399457375,1766370638728,-500.0,9.611e-05,2]
[399457376,1766370638738,-500.0,9.611e-05,2]
[399457377,1766370638748,-500.0,9.611e-05,2]
[399457378,1766370638757,-500.0,9.611e-05,2]
[399457379,1766370638767,-500.0,9.611e-05,2]
[399457380,1766370638776,-500.0,9.611e-05,2]
[399457381,1766370638785,-500.0,9.611e-05,2]
[399457382,1766370638795,-500.0,9.611e-05,2]
[399457383,1766370638805,-500.0,9.611e-05,2]
[399457384,1766370638815,-500.0,9.611e-05,2]
[399457385,1766370638825,-500.0,9.611e-05,2]
[399457386,1766370638835,-500.0,9.611e-05,2]
[399457387,1766370638846,-558.42764822,9.611e-05,2]
[399457388,1766370638856,-500.0,9.611e-05,2]
[399457389,1766370638867,-500.0,9.611e-05,2]
[399457390,1766370638876,-499.99999999,9.611e-05,2]
[399457391,1766370638886,-500.36196233,9.611e-05,2]
[399457392,1766370638896,-500.0,9.611e-05,2]
[399457393,1766370638914,-1243.79073335,9.612e-05,3]
[399457394,1766370638924,-1164.48735709,9.612e-05,3]
[399457395,1766370638934,-1152.37,9.612e-05,2]
[399457396,1766370638944,-348.116,9.612e-05,2]
[399457397,1766370638955,-160.3,9.612e-05,2]
[399457398,1766370638965,-408.01375927,9.612e-05,2]
[399457399,1766370638975,-332.86,9.612e-05,2]
[399457400,1766370638986,-4479.83,9.612e-05,2]
[399457401,1766370638996,-1543.91,9.612e-05,2]
[399457402,1766370639007,-999.99,9.612e-05,2]
[399457403,1766370639017,-9999.99,9.612e-05,2]
[399457404,1766370639027,-9999.99,9.612e-05,2]
[399457405,1766370639036,-4999.99,9.612e-05,2]
[399457406,1766370639046,-5385.31,9.612e-05,2]
[399457407,1766370639055,-3678.14,9.612e-05,2]
[399457408,1766370639065,-299.99,9.612e-05,2]
[399457409,1766370639074,-150.99,9.612e-05,2]
[399457410,1766370639084,-9999.99,9.612e-05,2]
[399457411,1766370639094,-405.48,9.612e-05,2]
[399457412,1766370639104,-9999.99,9.612e-05,2]
[399457413,1766370639113,-150.99,9.612e-05,2]
[399457414,1766370639122,-1194.6,9.612e-05,2]
[399457415,1766370639132,-8252.8204,9.614e-05,2]
[399457416,1766370639141,-1000.0,9.614e-05,2]
[399457417,1766370639150,-26170.03,9.62e-05,2]
[399457418,1766370639159,-983.12,9.684e-05,2]
[399457419,1766370639168,-1852.42,9.802e-05,2]
[399457420,1766370639178,-1847.15,9.859e-05,2]
[399457421,1766370639187,-4266.2,9.868e-05,2]
[399457422,1766370639196,-500.0,9.885e-05,2]
[399457423,1766370639205,-1152.37,9.886e-05,2]
[399457424,1766370639215,-151.0,0.0001,2]
[399457425,1766370639224,-151.0,0.0001,2]
[399457426,1766370639235,-151.0,0.0001,2]
[399457427,1766370639244,-151.0,0.0001,2]
[399457428,1766370639253,-151.0,0.0001,2]
[399457429,1766370639263,-151.0,0.0001,2]
[399457430,1766370639272,-151.0,0.0001,2]
[399457431,1766370639281,-151.0,0.0001,2]
[399457432,1766370639291,-151.0,0.0001,2]
[399457433,1766370639300,-151.0,0.0001,2]
[399457434,1766370639310,-151.0,0.0001,2]
[399457435,1766370639320,-151.0,0.0001,2]
[399457436,1766370639330,-151.0,0.0001,2]
[399457437,1766370639340,-151.0,0.0001,2]
[399457438,1766370639349,-151.0,0.0001,2]
[399457439,1766370639360,-151.0,0.0001,2]
[399457440,1766370639369,-151.0,0.0001,2]
[399457441,1766370639379,-151.0,0.0001,2]
[399457442,1766370639389,-283.7540495,0.0001,2]
[399457443,1766370639399,-10137.41763523,0.0001,2]
[399457444,1766370639409,-1152.37,0.0001016,2]
[399457445,1766370639418,-1847.15,0.00010177,2]
[399457446,1766370639428,-1152.37,0.00010434,2]
[399457447,1766370639438,-1680.0,0.00010461,2]
[399457448,1766370639448,-420.0,0.00010461,2]
[399457449,1766370639459,-255.0,0.00010461,2]
[399457450,1766370639469,-250.0,0.00010495,2]
[399457451,1766370639480,-1847.15,0.00010495,2]
[399457452,1766370639489,-16517.22,0.00010698,2]
[399457453,1766370639499,-267.43106957,0.000107,2]
[399457454,1766370639510,-1152.37,0.00010708,2]
[399457455,1766370639519,-985.09829802,0.000108,2]
[399457456,1766370639528,-1847.15,0.00010813,2]
[399457457,1766370639538,-784.25308607,0.000109,2]
[399457458,1766370639547,-784.25308604,0.000109,2]
[399457459,1766370639559,-18581.65,0.00010921,2]
[399457460,1766370639569,-999.0,0.00010959,3]
[399457461,1766370639579,-150.0,0.00010959,2]
[399457462,1766370639588,-1152.37,0.00010982,2]
[399457463,1766370639598,-5532.68353942,0.00011,2]
[399457464,1766370639607,-19252.74046859,0.00011099,2]
[399457465,1766370639617,-19252.74046857,0.00011099,2]
[399457466,1766370639626,-8280.56574839,0.00011099,2]
[399457467,1766370639636,-8280.5657483,0.00011099,2]
[399457468,1766370639646,-1847.15,0.00011131,2]
[399457469,1766370639655,-8280.5657483,0.0001116,2]
[399457470,1766370639664,-19252.74046857,0.0001116,2]
[399457471,1766370639673,-1152.37,0.00011256,2]
[399457472,1766370639683,-1847.15,0.00011449,2]
[399457473,1766370639692,-1490.09817043,0.00011497,2]
[399457474,1766370639702,-2351.0,0.00011507,2]
[399457475,1766370639711,-587.0,0.00011507,2]
[399457476,1766370639720,-433.0,0.00011507,2]
[399457477,1766370639729,-1152.37,0.0001153,2]
[399457478,1766370639739,-784.25308604,0.00011624,2]
[399457479,1766370639748,-1847.15,0.00011767,2]
[399457480,1766370639758,-19978.61,0.00011781,2]
[399457481,1766370639767,-1152.37,0.00011804,2]
[399457482,1766370639776,-8280.5657483,0.00011983,2]
[399457483,1766370639785,-19252.74046857,0.00011983,2]
[399457484,1766370639795,-5928.63774799,0.00012,2]
[399457485,1766370639805,-1152.37,0.00012078,2]
[399457486,1766370639815,-1847.15,0.00012085,2]
[399457487,1766370639827,-414.81,0.00012256,2]
[399457488,1766370639836,-1152.37,0.00012352,2]
[399457489,1766370639846,-51222.87,0.00012412,2]
[399457490,1766370639855,-250.0,0.00012567,2]
[399457491,1766370639865,-1152.44908961,0.00012626,2]
[399457492,1766370639875,-3292.0,0.00012658,2]
[399457493,1766370639887,-823.0,0.00012658,2]
[399457494,1766370639897,-736.0,0.00012658,2]
[399457495,1766370639906,-784.25308604,0.00012679,2]
[399457496,1766370639916,-8280.5657483,0.00012806,2]
[399457497,1766370639925,-19252.74046857,0.00012806,2]
[399457498,1766370639934,-129071.497397,0.0001299,2]
[399457499,1766370639944,-4412.95179133,0.00013,2]
[399457500,1766370639953,-5328.93897617,0.0001305,2]
[399457501,1766370639963,-151.0,0.00013253,2]
[399457502,1766370639972,-151.0,0.00013262,2]
[399457503,1766370639984,-151.0,0.00013277,2]
[399457504,1766370639993,-151.0,0.00013277,2]
[399457505,1766370640002,-1000.0,0.000135,2]
[399457506,1766370640012,-3729.21,0.00013598,2]
[399457507,1766370640022,-8280.5657483,0.00013628,2]
[399457508,1766370640031,-19252.74046857,0.00013628,2]
[399457509,1766370640040,-562.43328901,0.00013643,2]
[399457510,1766370640050,-550.36391425,0.00013643,2]
[399457511,1766370640059,-500.0,0.00013643,2]
[399457512,1766370640068,-537.36765375,0.00013643,2]
[399457513,1766370640077,-535.43855747,0.00013643,2]
[399457514,1766370640086,-500.0,0.00013643,2]
[399457515,1766370640095,-500.0,0.00013643,2]
[399457516,1766370640104,-500.0,0.00013643,2]
[399457518,1766370640113,-500.0,0.00013643,2]
[399457519,1766370640123,-500.0,0.00013643,2]
[399457520,1766370640132,-500.0,0.00013643,2]
[399457521,1766370640142,-500.0,0.00013643,2]
[399457522,1766370640151,-500.0,0.00013643,2]
[399457523,1766370640161,-500.0,0.00013643,2]
[399457524,1766370640170,-500.0,0.00013643,2]
[399457525,1766370640180,-500.0,0.00013643,2]
[399457526,1766370640189,-500.0,0.00013643,2]
[399457527,1766370640199,-500.0,0.00013643,2]
[399457528,1766370640208,-500.0,0.00013643,2]
[399457529,1766370640217,-484.24574485,0.00013643,2]
[399457530,1766370640231,-500.0,0.00013643,2]
[399457531,1766370640250,-500.0,0.00013643,2]
[399457532,1766370640259,-500.0,0.00013643,2]
[399457533,1766370640269,-222.91830755,0.00013643,2]
[399457534,1766370640278,-500.0,0.00013643,2]
[399457535,1766370640287,-500.0,0.00013643,2]
[399457536,1766370640297,-500.0,0.00013643,2]
[399457537,1766370640307,-500.0,0.00013643,2]
[399457538,1766370640316,-500.0,0.00013643,2]
[399457539,1766370640327,-500.0,0.00013643,2]
[399457540,1766370640337,-500.0,0.00013643,2]
[399457541,1766370640355,-500.0,0.00013643,2]
[399457542,1766370640365,-500.0,0.00013643,2]
[399457543,1766370640375,-260.05,0.00013698,2]
[399457544,1766370640385,-500.0,0.00013698,2]
[399457545,1766370640394,-500.0,0.00013698,2]
[399457546,1766370640403,-500.0,0.00013698,2]
[399457547,1766370640413,-500.0,0.00013698,2]
[399457548,1766370640422,-436.38149996,0.00013698,2]
[399457549,1766370640431,-500.0,0.00013698,2]
[399457550,1766370640441,-500.0,0.00013698,2]
[399457551,1766370640451,-500.0,0.00013698,2]
[399457552,1766370640461,-500.0,0.00013698,2]
[399457553,1766370640473,-373.89365293,0.00013698,2]
[399457554,1766370640482,-500.0,0.00013698,2]
[399457555,1766370640492,-500.0,0.00013698,2]
[399457556,1766370640501,-500.0,0.00013698,2]
[399457557,1766370640511,-547.81256791,0.00013698,2]
[399457558,1766370640522,-500.0,0.00013698,2]
[399457559,1766370640531,-500.0,0.00013698,2]
[399457560,1766370640541,-500.0,0.00013698,2]
[399457561,1766370640553,-500.0,0.00013698,2]
[399457562,1766370640563,-500.0,0.00013698,2]
[399457563,1766370640573,-500.0,0.00013698,2]
[399457564,1766370640585,-500.0,0.00013698,2]
[399457565,1766370640595,-500.0,0.00013698,2]
[399457566,1766370640605,-500.0,0.00013698,2]
[399457567,1766370640615,-500.0,0.00013698,2]
[399457568,1766370640625,-516.02053629,0.00013698,2]
[399457569,1766370640636,-500.0,0.00013698,2]
[399457570,1766370640646,-500.0,0.00013698,2]
[399457571,1766370640655,-500.0,0.00013698,2]
[399457572,1766370640664,-500.0,0.00013698,2]
[399457573,1766370640674,-500.0,0.00013698,2]
[399457574,1766370640685,-500.0,0.00013698,2]
[399457575,1766370640694,-509.63742065,0.00013698,2]
[399457576,1766370640704,-500.0,0.00013698,2]
[399457577,1766370640714,-500.0,0.00013698,2]
[399457578,1766370640723,-500.0,0.00013698,2]
[399457579,1766370640735,-500.0,0.00013698,2]
[399457580,1766370640745,-500.0,0.00013698,2]
[399457581,1766370640755,-500.0,0.00013698,2]
[399457582,1766370640766,-500.0,0.00013698,2]
[399457583,1766370640775,-500.0,0.00013698,2]
[399457584,1766370640785,-500.0,0.00013698,2]
[399457585,1766370640795,-281.94007823,0.00013698,2]
[399457586,1766370640805,-500.0,0.00013698,2]
[399457587,1766370640815,-500.0,0.00013698,2]
[399457588,1766370640824,-500.0,0.00013698,2]
[399457589,1766370640834,-500.0,0.00013698,2]
[399457590,1766370640843,-500.0,0.00013698,2]
[399457591,1766370640852,-500.0,0.00013698,2]
[399457592,1766370640861,-500.0,0.00013698,2]
[399457593,1766370640871,-511.45544987,0.00013698,2]
[399457594,1766370640880,-500.0,0.00013698,2]
[399457595,1766370640889,-500.0,0.00013698,2]
[399457596,1766370640899,-500.0,0.00013698,2]
[399457597,1766370640908,-504.51634156,0.00013698,2]
[399457598,1766370640918,-500.0,0.00013698,2]
[399457599,1766370640927,-500.0,0.00013698,2]
[399457600,1766370640936,-500.0,0.00013698,2]
[399457601,1766370640945,-500.0,0.00013698,2]
[399457602,1766370640954,-500.0,0.00013698,2]
[399457603,1766370640963,-500.0,0.00013698,2]
[399457604,1766370640973,-500.0,0.00013698,2]
[399457605,1766370640983,-500.0,0.00013698,2]
[399457606,1766370640993,-500.0,0.00013698,2]
[399457607,1766370641002,-500.0,0.00013698,2]
[399457608,1766370641011,-500.0,0.00013698,2]
[399457609,1766370641020,-500.0,0.00013698,2]
[399457610,1766370641029,-500.0,0.00013698,2]
[399457611,1766370641038,-503.72680128,0.00013698,2]
[399457612,1766370641047,-500.0,0.00013698,2]
[399457613,1766370641056,-500.0,0.00013698,2]
[399457614,1766370641066,-500.0,0.00013698,2]
[399457615,1766370641075,-510.51048737,0.00013698,2]
[399457616,1766370641084,-500.0,0.00013698,2]
[399457617,1766370641093,-500.0,0.00013698,2]
[399457618,1766370641103,-500.0,0.00013698,2]
[399457619,1766370641113,-574.81599122,0.00013698,2]
[399457620,1766370641123,-500.0,0.00013698,2]
[399457621,1766370641133,-500.0,0.00013698,2]
[399457622,1766370641142,-500.0,0.00013698,2]
[399457623,1766370641152,-500.0,0.00013698,2]
[399457624,1766370641162,-500.0,0.00013698,2]
[399457625,1766370641171,-500.0,0.00013698,2]
[399457626,1766370641181,-500.0,0.00013698,2]
[399457627,1766370641190,-500.0,0.00013698,2]
[399457628,1766370641199,-500.0,0.00013698,2]
[399457629,1766370641208,-500.0,0.00013698,2]
[399457630,1766370641217,-500.0,0.00013698,2]
[399457631,1766370641226,-344.92521507,0.00013698,2]
[399457632,1766370641237,-500.0,0.00013698,2]
[399457633,1766370641247,-500.0,0.00013698,2]
[399457634,1766370641255,-500.0,0.00013698,2]
[399457635,1766370641540,-500.0,0.00013698,2]
[399457636,1766370641557,-500.0,0.00013698,2]
[399457637,1766370641566,-506.35570593,0.00013698,2]
[399457638,1766370641575,-500.0,0.00013698,2]
[399457639,1766370641585,-500.0,0.00013698,2]
[399457640,1766370641594,-534.39778007,0.00013698,2]
[399457641,1766370641603,-500.0,0.00013698,2]
[399457642,1766370641612,-500.0,0.00013698,2]
[399457643,1766370641622,-500.0,0.00013698,2]
[399457644,1766370641631,-500.0,0.00013698,2]
[399457645,1766370641641,-500.0,0.00013698,2]
[399457646,1766370641650,-500.0,0.00013698,2]
[399457647,1766370641661,-507.17995557,0.00013698,2]
[399457648,1766370641670,-500.0,0.00013698,2]
[399457649,1766370641679,-500.0,0.00013698,2]
[399457650,1766370641688,-629.08810869,0.00013698,2]
[399457651,1766370641698,-612.93,0.00013699,2]
[399457652,1766370641707,-15708.21,0.00013699,2]
[399457653,1766370641717,-500.0,0.00013699,2]
[399457654,1766370641726,-500.0,0.00013699,2]
[399457655,1766370641736,-500.0,0.00013699,2]
[399457656,1766370641746,-212.46280064,0.00013699,2]
[399457657,1766370641755,-500.0,0.00013699,2]
[399457658,1766370641765,-500.0,0.00013699,2]
[399457659,1766370641775,-500.0,0.00013699,2]
[399457660,1766370641784,-500.0,0.00013699,2]
[399457661,1766370641793,-500.0,0.00013699,2]
[399457662,1766370641804,-500.0,0.00013699,2]
[399457663,1766370641815,-500.0,0.00013699,2]
[399457664,1766370641827,-500.0,0.00013699,2]
[399457665,1766370641837,-500.0,0.00013699,2]
[399457666,1766370641847,-500.0,0.00013699,2]
[399457667,1766370641857,-500.0,0.00013699,2]
[399457668,1766370641867,-500.0,0.00013699,2]
[399457669,1766370641877,-500.0,0.00013699,2]
[399457670,1766370641886,-167.6733324,0.00013699,2]
[399457671,1766370641896,-500.0,0.00013699,2]
[399457672,1766370641906,-500.0,0.00013699,2]
[399457673,1766370641917,-500.0,0.00013699,2]
[399457674,1766370641928,-500.0,0.00013699,2]
[399457675,1766370641937,-500.0,0.00013699,2]
[399457676,1766370641946,-500.0,0.00013699,2]
[399457677,1766370641955,-500.0,0.00013699,2]
[399457678,1766370641965,-500.0,0.00013699,2]
[399457679,1766370641974,-500.0,0.00013699,2]
[399457680,1766370641984,-500.0,0.00013699,2]
[399457681,1766370641993,-500.0,0.00013699,2]
[399457682,1766370642003,-500.0,0.00013699,2]
[399457683,1766370642013,-500.0,0.00013699,2]
[399457684,1766370642023,-500.0,0.00013699,2]
[399457685,1766370642032,-500.0,0.00013699,2]
[399457686,1766370642042,-500.0,0.00013699,2]
[399457687,1766370642051,-500.0,0.00013699,2]
[399457688,1766370642061,-9443.31,0.000137,2]
[399457689,1766370642070,-415.08,0.000137,2]
[399457690,1766370642082,-415.08,0.000137,2]
[399457691,1766370642091,-415.08,0.000137,2]
[399457692,1766370642101,-415.08,0.000137,2]
[399457693,1766370642110,-415.08,0.000137,2]
[399457694,1766370642120,-784.25308604,0.00013735,2]
[399457695,1766370642130,-1252.0,0.00013923,2]
[399457696,1766370642139,-4609.0,0.00013924,2]
[399457697,1766370642149,-1500.0,0.00014,2]
[399457698,1766370642158,-329.37,0.00014172,2]
[399457699,1766370642167,-1000.0,0.00014191,2]
[399457700,1766370642176,-1000.0,0.00014191,2]
[399457701,1766370642185,-1000.0,0.00014191,2]
[399457702,1766370642195,-1000.0,0.00014191,2]
[399457703,1766370642204,-1000.0,0.00014191,2]
[399457704,1766370642213,-1000.0,0.00014191,2]
[399457705,1766370642222,-1000.0,0.00014191,2]
[399457706,1766370642231,-1000.0,0.00014191,2]
[399457707,1766370642240,-1000.0,0.00014191,2]
[399457708,1766370642249,-1000.0,0.00014191,2]
[399457709,1766370642257,-500.81193052,0.00014191,2]
[399457710,1766370642267,-1000.0,0.00014191,2]
[399457711,1766370642278,-1000.0,0.00014191,2]
[399457712,1766370642287,-937.07935653,0.00014191,2]
[399457713,1766370642299,-1000.0,0.00014191,2]
[399457714,1766370642308,-1000.0,0.00014191,2]
[399457715,1766370642318,-1000.0,0.00014191,2]
[399457716,1766370642327,-1000.0,0.00014191,2]
[399457717,1766370642336,-1000.0,0.00014191,2]
[399457718,1766370642347,-804.17773207,0.00014191,2]
[399457719,1766370642357,-453.73344194,0.00014191,2]
[399457720,1766370642366,-1000.0,0.00014191,2]
[399457721,1766370642375,-1000.0,0.00014191,2]
[399457722,1766370642384,-1144.6648404,0.00014191,2]
[399457723,1766370642393,-866.5623891,0.00014191,2]
[399457724,1766370642402,-1000.0,0.00014191,2]
[399457725,1766370642411,-1000.0,0.00014191,2]
[399457726,1766370642421,-263.63,0.00014218,2]
[399457727,1766370642431,-10279.41003921,0.0001439,2]
[399457728,1766370642440,-8280.5657483,0.00014451,2]
[399457729,1766370642449,-19252.74046857,0.00014451,2]
[399457730,1766370642458,-3301.98750385,0.0001451,2]
[399457731,1766370642468,-500.0,0.00014738,2]
[399457732,1766370642479,-501.38196086,0.00014739,2]
[399457733,1766370642488,-597.93973627,0.00014739,2]
[399457734,1766370642498,-659.366475,0.00014739,2]
[399457735,1766370642507,-1500.0,0.00014739,2]
[399457736,1766370642518,-1152.24771279,0.00014739,2]
[399457737,1766370642527,-1500.0,0.00014739,2]
[399457738,1766370642536,-1500.0,0.00014739,2]
[399457739,1766370642546,-1500.0,0.00014739,2]
[399457740,1766370642556,-1500.0,0.00014739,2]
[399457741,1766370642565,-1500.0,0.00014739,2]
[399457742,1766370642574,-1500.0,0.00014739,2]
[399457743,1766370642584,-1500.0,0.00014739,2]
[399457744,1766370642593,-1500.0,0.00014739,2]
[399457745,1766370642603,-1500.0,0.00014739,2]
[399457746,1766370642613,-480.93651792,0.00014739,2]
[399457747,1766370642622,-1500.0,0.00014739,2]
[399457748,1766370642632,-1500.0,0.00014739,2]
[399457749,1766370642641,-1500.0,0.00014739,2]
[399457750,1766370642651,-1504.58016272,0.00014739,2]
[399457751,1766370642660,-1500.0,0.00014739,2]
[399457752,1766370642669,-1500.0,0.00014739,2]
[399457753,1766370642678,-784.25308604,0.0001479,2]
[399457754,1766370642687,-5014.92,0.00014999,2]
[399457755,1766370642697,-2041.02448075,0.00015,2]
[399457756,1766370642706,-1344.90035388,0.00015,14]
[399457757,1766370642716,-7945.49825452,0.00015,2]
[399457758,1766370642725,-21356.21903813,0.00015,2]
[399457759,1766370642735,-1154.92232765,0.00015,2]
[399457760,1766370642745,-25864.54250308,0.00015,2]
[399457761,1766370642755,-151.0,0.00015271,2]
[399457762,1766370642763,-8280.5657483,0.00015274,2]
[399457763,1766370642772,-19252.74046857,0.00015274,2]
[399457764,1766370642782,-659.1358272,0.00015287,2]
[399457765,1766370642790,-2000.0,0.00015287,2]
[399457766,1766370642799,-1502.21103807,0.00015287,2]
[399457767,1766370642808,-2000.0,0.00015287,2]
[399457768,1766370642818,-2000.0,0.00015287,2]
[399457769,1766370642826,-2000.0,0.00015287,2]
[399457770,1766370642836,-1390.7850892,0.00015287,2]
[399457771,1766370642845,-2000.0,0.00015287,2]
[399457772,1766370642854,-1572.96293358,0.00015287,2]
[399457773,1766370642863,-2000.0,0.00015287,2]
[399457774,1766370642873,-667.2591655,0.00015287,2]
[399457775,1766370642882,-1437.14852253,0.00015287,2]
[399457776,1766370642891,-459.78950383,0.00015287,2]
[399457777,1766370642901,-1005.45508162,0.00015287,2]